fUST/lending_fUST_20250520
["ID","MTS","AMOUNT","RATE_DAILY","PERIOD"]
[361667830,1747678258356,-441.87,0.00018904,2]
[361667831,1747678258366,-2022.39,0.00018904,2]
[361667832,1747678258375,-430.0,0.00018904,2]
[361667833,1747678258384,-430.0,0.00018904,2]
[361667834,1747678258394,-430.0,0.00018904,2]
[361667835,1747678258403,-3870.66,0.00018904,2]
[361667836,1747678258413,-4521.89,0.00018904,2]
[361667837,1747678258422,-363.02849026,0.00018904,2]
[361667838,1747678258432,-430.0,0.00018904,2]
[361667839,1747678258441,-430.0,0.00018904,2]
[361667840,1747678258450,-623.36,0.00018904,2]
[361667841,1747678258460,-430.0,0.00018904,2]
[361667842,1747678258580,-430.0,0.00018904,2]
[361667843,1747678258590,-1455.67,0.00018904,2]
[361667844,1747678258601,-430.0,0.00018904,2]
[361667845,1747678258610,-165.52086089,0.00018904,2]
[361667846,1747678258619,-1638.01,0.00018904,2]
[361667847,1747678258629,-430.0,0.00018904,2]
[361667848,1747678258638,-542.53,0.00018904,2]
[361667849,1747678258647,-308.47321506,0.00018904,2]
[361667850,1747678258656,-430.0,0.00018904,2]
[361667851,1747678258665,-861.13,0.00018904,2]
[361667852,1747678258675,-430.0,0.00018904,2]
[361667853,1747678258684,-735.09,0.00018904,2]
[361667854,1747678258693,-430.0,0.00018904,2]
[361667855,1747678258702,-430.0,0.00018904,2]
[361667856,1747678258711,-430.0,0.00018904,2]
[361667857,1747678258720,-446.73,0.00018904,2]
[361667858,1747678258730,-430.0,0.00018904,2]
[361667859,1747678258739,-906.22,0.00018904,2]
[361667860,1747678258750,-430.0,0.00018904,2]
[361667861,1747678258759,-430.0,0.00018904,2]
[361667862,1747678258768,-2900.95,0.00018904,2]
[361667863,1747678258777,-430.0,0.00018904,2]
[361667864,1747678258786,-430.0,0.00018904,2]
[361667865,1747678258795,-253.08866167,0.00018904,2]
[361667866,1747678258809,-668.98,0.00018904,2]
[361667867,1747678258819,-806.41,0.00018904,2]
[361667868,1747678258828,-430.0,0.00018904,2]
[361667869,1747678258837,-287.84286685,0.00018904,2]
[361667870,1747678258846,-430.0,0.00018904,2]
[361667871,1747678258855,-430.0,0.00018904,2]
[361667872,1747678258864,-430.0,0.00018904,2]
[361667873,1747678258874,-430.0,0.00018904,2]
[361667874,1747678258884,-430.0,0.00018904,2]
[361667875,1747678258894,-853.48,0.00018904,2]
[361667876,1747678258905,-1223.52,0.00018904,2]
[361667877,1747678258914,-430.0,0.00018904,2]
[361667878,1747678258924,-430.0,0.00018904,2]
[361667879,1747678258933,-996.23,0.00018904,2]
[361667880,1747678258943,-500.0,0.00018904,2]
[361667881,1747678258953,-430.0,0.00018904,2]
[361667882,1747678258962,-1390.5,0.00018904,2]
[361667883,1747678258972,-430.0,0.00018904,2]
[361667884,1747678258982,-430.0,0.00018904,2]
[361667885,1747678258992,-455.63750211,0.00018904,2]
[361667886,1747678259002,-430.0,0.00018904,2]
[361667887,1747678259011,-430.0,0.00018904,2]
[361667888,1747678259020,-1409.57,0.00018904,2]
[361667889,1747678259029,-430.0,0.00018904,2]
[361667890,1747678259038,-430.0,0.00018904,2]
[361667891,1747678259047,-2124.49,0.00018904,2]
[361667892,1747678259056,-701.29,0.00018904,2]
[361667893,1747678259066,-501.83,0.00018904,2]
[361667894,1747678259075,-1561.15,0.00018904,2]
[361667895,1747678259084,-441.96,0.00018904,2]
[361667896,1747678259093,-899.12,0.00018904,2]
[361667897,1747678259102,-1104.97,0.00018904,2]
[361667898,1747678259111,-303.23247097,0.00018904,2]
[361667899,1747678259121,-430.0,0.00018904,2]
[361667900,1747678259130,-2522.44,0.00018904,2]
[361667901,1747678259139,-430.0,0.00018904,2]
[361667902,1747678259148,-468.08,0.00018904,2]
[361667903,1747678259157,-2904.2,0.00018904,2]
[361667904,1747678259167,-478.87,0.00018904,2]
[361667905,1747678259176,-367.77639282,0.00018904,2]
[361667906,1747678259186,-332.05495158,0.00018904,2]
[361667907,1747678259195,-1119.33,0.00018904,2]
[361667908,1747678259204,-561.73,0.00018904,2]
[361667909,1747678259213,-1123.5,0.00018904,2]
[361667910,1747678259222,-926.76,0.00018904,2]
[361667911,1747678259232,-1799.58,0.00018904,2]
[361667912,1747678259241,-2130.66,0.00018904,2]
[361667913,1747678259250,-430.0,0.00018904,2]
[361667914,1747678259259,-430.0,0.00018904,2]
[361667915,1747678259268,-430.0,0.00018904,2]
[361667916,1747678259277,-510.7,0.00018904,2]
[361667917,1747678259286,-430.0,0.00018904,2]
[361667918,1747678259296,-430.0,0.00018904,2]
[361667919,1747678259305,-430.0,0.00018904,2]
[361667920,1747678259315,-1184.09,0.00018904,2]
[361667921,1747678259325,-430.0,0.00018904,2]
[361667922,1747678259334,-430.0,0.00018904,2]
[361667923,1747678259343,-443.1284119,0.00018904,2]
[361667924,1747678259354,-736.8,0.00018904,2]
[361667925,1747678259364,-430.0,0.00018904,2]
[361667926,1747678259373,-452.00664358,0.00018904,2]
[361667927,1747678259382,-430.0,0.00018904,2]
[361667928,1747678259392,-581.31,0.00018904,2]
[361667929,1747678259401,-430.0,0.00018904,2]
[361667930,1747678259411,-752.45,0.00018904,2]
[361667931,1747678259421,-695.3,0.00018904,2]
[361667932,1747678259431,-716.17,0.00018904,2]
[361667933,1747678259440,-1529.7,0.00018904,2]
[361667934,1747678259449,-282.67525055,0.00018904,2]
[361667935,1747678259459,-267.5621025,0.00018921,2]
[361667936,1747678259469,-1000.0,0.00018921,2]
[361667937,1747678259479,-1000.0,0.00018921,2]
[361667938,1747678259488,-1000.0,0.00018921,2]
[361667939,1747678259498,-635.29282975,0.00018921,2]
[361667940,1747678259507,-215.53954383,0.00018921,2]
[361667941,1747678259517,-1000.0,0.00018921,2]
[361667942,1747678259526,-1000.0,0.00018921,2]
[361667943,1747678259536,-1000.0,0.00018921,2]
[361667944,1747678259545,-1000.0,0.00018921,2]
[361667945,1747678259554,-1000.0,0.00018921,2]
[361667946,1747678259563,-1000.0,0.00018921,2]
[361667947,1747678259572,-505.14453597,0.00018921,2]
[361667948,1747678259583,-1000.0,0.00018921,2]
[361667949,1747678259592,-500.0,0.00018973,2]
[361667951,1747678259601,-531.05486349,0.00018973,2]
[361667953,1747678259610,-304.59297563,0.00018973,2]
[361667954,1747678259619,-500.10163326,0.00018973,2]
[361667955,1747678259628,-500.0,0.00018973,2]
[361667956,1747678259637,-500.11246726,0.00018973,2]
[361667957,1747678259646,-360.0,0.0001898,2]
[361667958,1747678259656,-73394.72538326,0.00018986,2]
[361667959,1747678259665,-779.21399,0.00018986,2]
[361667960,1747678259674,-779.21399,0.00018986,2]
[361667961,1747678259683,-151.0,0.00018986,2]
[361667962,1747678259692,-245.199336,0.00018986,2]
[361667963,1747678259701,-245.199336,0.00018986,2]
[361667964,1747678259710,-151.0,0.00018986,2]
[361667965,1747678259719,-339.873522,0.00018986,2]
[361667966,1747678259729,-339.873522,0.00018986,2]
[361667967,1747678259739,-1000.0,0.00019,2]
[361667968,1747678259748,-275.54924281,0.00019,7]
[361667969,1747678259757,-151.0,0.00019,2]
[361667970,1747678259767,-431.44118592,0.00019074,2]
[361667971,1747678259777,-10872.38156824,0.00019078,2]
[361667972,1747678259786,-215.0738,0.00019079,2]
[361667973,1747678259796,-151.0,0.00019079,2]
[361667974,1747678259808,-151.0,0.000191,2]
[361667975,1747678259817,-5000.0,0.00019138,2]
[361667976,1747678259827,-230.704725,0.00019141,2]
[361667977,1747678259836,-230.704725,0.00019141,2]
[361667978,1747678259846,-151.0,0.00019178,2]
[361667979,1747678259856,-151.0,0.00019178,2]
[361667980,1747678259866,-151.0,0.00019178,2]
[361667981,1747678259876,-151.0,0.00019178,2]
[361667982,1747678259887,-151.0,0.00019178,2]
[361667983,1747678259896,-230.704725,0.00019178,2]
[361667984,1747678259906,-230.704725,0.00019178,2]
[361667985,1747678259915,-226.524601,0.00019178,2]
[361667986,1747678259925,-226.524601,0.00019178,2]
[361667987,1747678259934,-226.524601,0.00019178,2]
[361667988,1747678259943,-226.524601,0.00019178,2]
[361667989,1747678259952,-226.524601,0.00019178,2]
[361667990,1747678259961,-226.524601,0.00019178,2]
[361667991,1747678259970,-151.0,0.00019178,2]
[361667992,1747678259979,-151.0,0.00019178,2]
[361667993,1747678259989,-151.0,0.00019178,2]
[361667994,1747678259998,-779.21399,0.00019178,2]
[361667995,1747678260007,-779.21399,0.00019178,2]
[361667996,1747678260017,-779.21399,0.00019178,2]
[361667997,1747678260027,-779.213983,0.00019178,2]
[361667998,1747678260037,-430.0,0.00019178,2]
[361667999,1747678260047,-430.0,0.00019178,2]
[361668000,1747678260059,-455.72696504,0.00019178,2]
[361668001,1747678260068,-245.199336,0.00019178,2]
[361668002,1747678260078,-245.199336,0.00019178,2]
[361668003,1747678260087,-372.01093269,0.00019178,2]
[361668004,1747678260097,-245.199336,0.00019178,2]
[361668005,1747678260107,-245.199336,0.00019178,2]
[361668006,1747678260116,-762.608768,0.00019178,2]
[361668007,1747678260126,-762.608768,0.00019178,2]
[361668008,1747678260135,-329.48578833,0.00019178,2]
[361668009,1747678260144,-151.0,0.00019178,2]
[361668010,1747678260154,-151.0,0.00019178,2]
[361668011,1747678260163,-430.0,0.00019178,2]
[361668012,1747678260172,-499.51,0.00019178,2]
[361668013,1747678260182,-430.0,0.00019178,2]
[361668014,1747678260191,-382.96228669,0.00019178,2]
[361668015,1747678260200,-430.0,0.00019178,2]
[361668016,1747678260209,-390.67868978,0.00019178,2]
[361668017,1747678260219,-245.57420049,0.00019178,2]
[361668018,1747678260229,-430.0,0.00019178,2]
[361668019,1747678260239,-430.0,0.00019178,2]
[361668020,1747678260248,-434.42715899,0.00019178,2]
[361668021,1747678260258,-686.82,0.00019178,2]
[361668022,1747678260268,-430.0,0.00019178,2]
[361668023,1747678260278,-462.33338746,0.00019178,2]
[361668024,1747678260287,-228.09803698,0.00019178,2]
[361668025,1747678260296,-339.873522,0.00019178,2]
[361668026,1747678260305,-339.873522,0.00019178,2]
[361668027,1747678260314,-339.873522,0.00019178,2]
[361668028,1747678260323,-339.873512,0.00019178,2]
[361668029,1747678260333,-430.0,0.00019178,2]
[361668030,1747678260342,-430.0,0.00019178,2]
[361668031,1747678260352,-430.0,0.00019178,2]
[361668032,1747678260361,-351.55930267,0.00019178,2]
[361668033,1747678260370,-430.0,0.00019178,2]
[361668034,1747678260380,-776.59,0.00019178,2]
[361668035,1747678260389,-430.0,0.00019178,2]
[361668036,1747678260398,-430.0,0.00019178,2]
[361668037,1747678260408,-430.0,0.00019178,2]
[361668038,1747678260418,-430.0,0.00019178,2]
[361668039,1747678260427,-681.39,0.00019178,2]
[361668040,1747678260437,-430.0,0.00019178,2]
[361668041,1747678260447,-430.0,0.00019178,2]
[361668042,1747678260457,-430.0,0.00019178,2]
[361668043,1747678260467,-430.0,0.00019178,2]
[361668044,1747678260477,-516.86,0.00019178,2]
[361668045,1747678260487,-629.1,0.00019178,2]
[361668046,1747678260496,-430.0,0.00019178,2]
[361668047,1747678260506,-430.0,0.00019178,2]
[361668048,1747678260516,-430.0,0.00019178,2]
[361668049,1747678260525,-1132.44,0.00019178,2]
[361668050,1747678260534,-355.69498018,0.00019178,2]
[361668051,1747678260543,-430.0,0.00019178,2]
[361668052,1747678260554,-852.15,0.00019178,2]
[361668053,1747678260563,-430.0,0.00019178,2]
[361668054,1747678260573,-430.0,0.00019178,2]
[361668055,1747678260583,-605.64,0.00019178,2]
[361668056,1747678260592,-875.09,0.00019178,2]
[361668057,1747678260602,-430.0,0.00019178,2]
[361668058,1747678260611,-430.0,0.00019178,2]
[361668059,1747678260620,-430.0,0.00019178,2]
[361668060,1747678260630,-358.0,0.00019178,2]
[361668061,1747678260639,-430.0,0.00019178,2]
[361668062,1747678260649,-496.50848099,0.00019178,2]
[361668063,1747678260659,-430.0,0.00019178,2]
[361668064,1747678260669,-275.03193517,0.00019178,2]
[361668065,1747678260679,-430.0,0.00019178,2]
[361668066,1747678260689,-430.0,0.00019178,2]
[361668067,1747678260699,-577.82492884,0.00019178,2]
[361668068,1747678260709,-545.76,0.00019178,2]
[361668069,1747678260718,-430.0,0.00019178,2]
[361668070,1747678260728,-430.0,0.00019178,2]
[361668071,1747678260737,-430.0,0.00019178,2]
[361668072,1747678260747,-430.0,0.00019178,2]
[361668073,1747678260757,-430.0,0.00019178,2]
[361668074,1747678260767,-671.94,0.00019178,2]
[361668075,1747678260777,-430.0,0.00019178,2]
[361668076,1747678260787,-701.04,0.00019178,2]
[361668077,1747678260798,-263.93406109,0.00019178,2]
[361668078,1747678260810,-430.0,0.00019178,2]
[361668079,1747678260820,-430.0,0.00019178,2]
[361668080,1747678260829,-430.0,0.00019178,2]
[361668081,1747678260839,-575.34,0.00019178,2]
[361668082,1747678260849,-430.0,0.00019178,2]
[361668083,1747678260859,-151.0,0.00019178,2]
[361668084,1747678260868,-433.77,0.00019178,2]
[361668085,1747678260880,-443.26757197,0.00019178,2]
[361668086,1747678260890,-430.0,0.00019178,2]
[361668087,1747678260899,-430.0,0.00019178,2]
[361668088,1747678260909,-430.0,0.00019178,2]
[361668089,1747678260919,-430.0,0.00019178,2]
[361668090,1747678260929,-430.0,0.00019178,2]
[361668091,1747678260938,-430.0,0.00019178,2]
[361668092,1747678260949,-202.61621835,0.00019178,2]
[361668093,1747678260959,-430.0,0.00019178,2]
[361668094,1747678260970,-430.0,0.00019178,2]
[361668095,1747678260981,-430.0,0.00019178,2]
[361668096,1747678261098,-439.55,0.00019178,2]
[361668097,1747678261108,-430.0,0.00019178,2]
[361668098,1747678261118,-430.0,0.00019178,2]
[361668099,1747678261127,-430.0,0.00019178,2]
[361668100,1747678261139,-451.43,0.00019178,2]
[361668101,1747678261149,-430.0,0.00019178,2]
[361668102,1747678261159,-745.65,0.00019178,2]
[361668103,1747678261171,-430.0,0.00019178,2]
[361668104,1747678261180,-153.68814254,0.00019178,2]
[361668105,1747678261190,-430.0,0.00019178,2]
[361668106,1747678261199,-430.0,0.00019178,2]
[361668107,1747678261209,-430.0,0.00019178,2]
[361668108,1747678261218,-430.0,0.00019178,2]
[361668109,1747678261227,-430.0,0.00019178,2]
[361668110,1747678261238,-243.55744597,0.00019178,2]
[361668111,1747678261248,-430.0,0.00019178,2]
[361668112,1747678261258,-430.0,0.00019178,2]
[361668113,1747678261268,-430.0,0.00019178,2]
[361668114,1747678261278,-430.0,0.00019178,2]
[361668115,1747678261288,-438.7,0.00019178,2]
[361668116,1747678261297,-434.58,0.00019178,2]
[361668117,1747678261306,-430.0,0.00019178,2]
[361668118,1747678261316,-430.0,0.00019178,2]
[361668119,1747678261326,-454.78779347,0.00019178,2]
[361668120,1747678261336,-175.51707574,0.00019178,2]
[361668121,1747678261345,-430.0,0.00019178,2]
[361668122,1747678261354,-430.0,0.00019178,2]
[361668123,1747678261364,-1375.68,0.00019178,2]
[361668124,1747678261373,-442.15745603,0.00019178,2]
[361668125,1747678261383,-430.0,0.00019178,2]
[361668126,1747678261392,-413.87728408,0.00019178,2]
[361668127,1747678261401,-430.0,0.00019178,2]
[361668128,1747678261411,-430.0,0.00019178,2]
[361668129,1747678261420,-551.59,0.00019178,2]
[361668130,1747678261430,-430.0,0.00019178,2]
[361668131,1747678261439,-430.0,0.00019178,2]
[361668132,1747678261449,-430.0,0.00019178,2]
[361668133,1747678261458,-430.0,0.00019178,2]
[361668134,1747678261468,-430.0,0.00019178,2]
[361668135,1747678261477,-435.21850622,0.00019178,2]
[361668136,1747678261487,-430.0,0.00019178,2]
[361668137,1747678261497,-530.62,0.00019178,2]
[361668138,1747678261508,-430.0,0.00019178,2]
[361668139,1747678261518,-2065.45,0.00019178,2]
[361668140,1747678261528,-430.0,0.00019178,2]
[361668141,1747678261538,-430.0,0.00019178,2]
[361668142,1747678261547,-410.56002686,0.00019178,2]
[361668143,1747678261557,-430.0,0.00019178,2]
[361668144,1747678261566,-430.0,0.00019178,2]
[361668145,1747678261576,-430.0,0.00019178,2]
[361668146,1747678261585,-430.0,0.00019178,2]
[361668147,1747678261594,-430.0,0.00019178,2]
[361668148,1747678261605,-2491.97,0.00019178,2]
[361668149,1747678261614,-864.52,0.00019178,2]
[361668150,1747678261624,-430.0,0.00019178,2]
[361668151,1747678261633,-637.32,0.00019178,2]
[361668152,1747678261643,-454.35066378,0.00019178,2]
[361668153,1747678261652,-290.63884412,0.00019178,2]
[361668154,1747678261662,-1871.71,0.00019178,2]
[361668155,1747678261673,-430.0,0.00019178,2]
[361668156,1747678261683,-430.0,0.00019178,2]
[361668157,1747678261694,-4063.35,0.00019178,2]
[361668158,1747678261705,-430.0,0.00019178,2]
[361668159,1747678261715,-430.0,0.00019178,2]
[361668160,1747678261726,-685.18,0.00019178,2]
[361668161,1747678261736,-430.0,0.00019178,2]
[361668162,1747678261746,-817.13,0.00019178,2]
[361668163,1747678261756,-430.0,0.00019178,2]
[361668164,1747678261765,-430.0,0.00019178,2]
[361668165,1747678261775,-5294.37,0.00019178,2]
[361668166,1747678261784,-534.03,0.00019178,2]
[361668167,1747678261794,-430.0,0.00019178,2]
[361668168,1747678261807,-430.0,0.00019178,2]
[361668169,1747678261818,-566.9,0.00019178,2]
[361668170,1747678261828,-430.0,0.00019178,2]
[361668171,1747678261837,-2065.21,0.00019178,2]
[361668173,1747678261847,-537.77,0.00019178,2]
[361668175,1747678261856,-430.0,0.00019178,2]
[361668177,1747678261866,-430.0,0.00019178,2]
[361668179,1747678261876,-430.0,0.00019178,2]
[361668181,1747678261885,-4975.86,0.00019178,2]
[361668182,1747678261895,-430.0,0.00019178,2]
[361668184,1747678261907,-835.39,0.00019178,2]
[361668186,1747678261918,-430.0,0.00019178,2]
[361668189,1747678261928,-1400.2,0.00019178,2]
[361668191,1747678261937,-1314.62,0.00019178,2]
[361668193,1747678261947,-1072.15,0.00019178,2]
[361668195,1747678261956,-1095.34,0.00019178,2]
[361668197,1747678261965,-175.74921664,0.00019178,2]
[361668199,1747678261975,-430.0,0.00019178,2]
[361668201,1747678261988,-1638.88,0.00019178,2]
[361668203,1747678261998,-430.0,0.00019178,2]
[361668205,1747678262008,-1009.6,0.00019178,2]
[361668207,1747678262018,-430.0,0.00019178,2]
[361668209,1747678262028,-656.69,0.00019178,2]
[361668211,1747678262037,-7287.93,0.00019178,2]
[361668213,1747678262047,-430.0,0.00019178,2]
[361668215,1747678262058,-1675.27,0.00019178,2]
[361668217,1747678262067,-430.0,0.00019178,2]
[361668219,1747678262077,-582.76,0.00019178,2]
[361668221,1747678262086,-4789.9,0.00019178,2]
[361668223,1747678262096,-430.0,0.00019178,2]
[361668225,1747678262106,-430.0,0.00019178,2]
[361668227,1747678262115,-430.0,0.00019178,2]
[361668229,1747678262125,-1475.08,0.00019178,2]
[361668231,1747678262135,-430.0,0.00019178,2]
[361668233,1747678262145,-3802.2,0.00019178,2]
[361668235,1747678262155,-441.87,0.00019178,2]
[361668236,1747678262164,-2022.39,0.00019178,2]
[361668237,1747678262173,-430.0,0.00019178,2]
[361668238,1747678262183,-430.0,0.00019178,2]
[361668239,1747678262192,-3870.66,0.00019178,2]
[361668240,1747678262201,-4521.89,0.00019178,2]
[361668242,1747678262211,-430.0,0.00019178,2]
[361668244,1747678262220,-430.0,0.00019178,2]
[361668246,1747678262235,-623.36,0.00019178,2]
[361668248,1747678262250,-430.0,0.00019178,2]
[361668251,1747678262265,-430.0,0.00019178,2]
[361668253,1747678262280,-1455.67,0.00019178,2]
[361668256,1747678262294,-1638.01,0.00019178,2]
[361668258,1747678262311,-216.83340762,0.00019178,2]
[361668261,1747678262326,-542.53,0.00019178,2]
[361668264,1747678262354,-460.86544658,0.00019178,2]
[361668266,1747678262370,-861.13,0.00019178,2]
[361668269,1747678262384,-430.0,0.00019178,2]
[361668271,1747678262398,-735.09,0.00019178,2]
[361668274,1747678262414,-430.0,0.00019178,2]
[361668276,1747678262431,-430.0,0.00019178,2]
[361668278,1747678262444,-446.73,0.00019178,2]
[361668280,1747678262458,-430.0,0.00019178,2]
[361668283,1747678262473,-906.22,0.00019178,2]
[361668285,1747678262492,-430.0,0.00019178,2]
[361668288,1747678262510,-430.0,0.00019178,2]
[361668291,1747678262528,-2900.95,0.00019178,2]
[361668293,1747678262540,-430.0,0.00019178,2]
[361668295,1747678262551,-430.0,0.00019178,2]
[361668297,1747678262565,-668.98,0.00019178,2]
[361668300,1747678262581,-806.41,0.00019178,2]
[361668302,1747678262592,-400.0,0.00019178,2]
[361668304,1747678262604,-430.0,0.00019178,2]
[361668307,1747678262619,-219.54841161,0.00019178,2]
[361668309,1747678262630,-430.0,0.00019178,2]
[361668311,1747678262643,-430.0,0.00019178,2]
[361668314,1747678262655,-430.0,0.00019178,2]
[361668316,1747678262668,-853.48,0.00019178,2]
[361668318,1747678262680,-1223.52,0.00019178,2]
[361668321,1747678262692,-430.0,0.00019178,2]
[361668323,1747678262704,-996.23,0.00019178,2]
[361668325,1747678262717,-500.0,0.00019178,2]
[361668327,1747678262732,-430.0,0.00019178,2]
[361668330,1747678262744,-1390.5,0.00019178,2]
[361668332,1747678262757,-430.0,0.00019178,2]
[361668334,1747678262770,-430.0,0.00019178,2]
[361668336,1747678262783,-430.0,0.00019178,2]
[361668339,1747678262796,-430.0,0.00019178,2]
[361668341,1747678262813,-1409.57,0.00019178,2]
[361668343,1747678262825,-430.0,0.00019178,2]
[361668346,1747678262837,-430.0,0.00019178,2]
[361668348,1747678262848,-2124.49,0.00019178,2]
[361668350,1747678262859,-701.29,0.00019178,2]
[361668352,1747678262870,-501.83,0.00019178,2]
[361668354,1747678262885,-1561.15,0.00019178,2]
[361668356,1747678262896,-441.96,0.00019178,2]
[361668359,1747678262907,-899.12,0.00019178,2]
[361668361,1747678262918,-1104.97,0.00019178,2]
[361668363,1747678262928,-430.0,0.00019178,2]
[361668365,1747678262940,-430.0,0.00019178,2]
[361668367,1747678262951,-430.0,0.00019178,2]
[361668368,1747678262963,-430.0,0.00019178,2]
[361668369,1747678262974,-430.0,0.00019178,2]
[361668370,1747678262989,-2522.44,0.00019178,2]
[361668371,1747678263000,-430.0,0.00019178,2]
[361668372,1747678263012,-468.08,0.00019178,2]
[361668373,1747678263024,-2904.2,0.00019178,2]
[361668374,1747678263036,-478.87,0.00019178,2]
[361668375,1747678263049,-1119.33,0.00019178,2]
[361668376,1747678263060,-561.73,0.00019178,2]
[361668377,1747678263073,-1123.5,0.00019178,2]
[361668378,1747678263084,-926.76,0.00019178,2]
[361668379,1747678263096,-1799.58,0.00019178,2]
[361668380,1747678263107,-2130.66,0.00019178,2]
[361668381,1747678263118,-430.0,0.00019178,2]
[361668382,1747678263130,-430.0,0.00019178,2]
[361668383,1747678263141,-430.0,0.00019178,2]
[361668384,1747678263153,-510.7,0.00019178,2]
[361668385,1747678263165,-430.0,0.00019178,2]
[361668386,1747678263177,-578.68122496,0.00019178,2]
[361668387,1747678263188,-430.0,0.00019178,2]
[361668388,1747678263200,-1184.09,0.00019178,2]
[361668389,1747678263212,-430.0,0.00019178,2]
[361668390,1747678263224,-430.0,0.00019178,2]
[361668391,1747678263238,-736.8,0.00019178,2]
[361668392,1747678263251,-430.0,0.00019178,2]
[361668393,1747678263263,-314.71772798,0.00019178,2]
[361668394,1747678263274,-581.31,0.00019178,2]
[361668395,1747678263286,-752.45,0.00019178,2]
[361668396,1747678263298,-695.3,0.00019178,2]
[361668397,1747678263310,-716.17,0.00019178,2]
[361668398,1747678263322,-1529.7,0.00019178,2]
[361668399,1747678263335,-155.0,0.00019178,2]
[361668400,1747678263347,-450.076442,0.00019178,2]
[361668401,1747678263372,-166.0,0.00019178,2]
[361668402,1747678263384,-4854.67001534,0.0001921,2]
[361668403,1747678263396,-1000.0,0.00019221,2]
[361668404,1747678263407,-1000.0,0.00019221,2]
[361668405,1747678263418,-1000.0,0.00019221,2]
[361668406,1747678263430,-1000.0,0.00019221,2]
[361668407,1747678263441,-1000.0,0.00019221,2]
[361668408,1747678263452,-1000.0,0.00019221,2]
[361668409,1747678263463,-507.49889049,0.00019221,2]
[361668410,1747678263473,-514.65279665,0.00019221,2]
[361668411,1747678263487,-1000.0,0.00019221,2]
[361668412,1747678263501,-964.88606528,0.00019221,2]
[361668413,1747678263512,-1000.0,0.00019221,2]
[361668414,1747678263523,-1000.0,0.00019221,2]
[361668415,1747678263536,-1000.0,0.00019221,2]
[361668416,1747678263547,-1000.0,0.00019221,2]
[361668417,1747678263558,-1000.0,0.00019221,2]
[361668418,1747678263569,-500.0322281,0.00019221,2]
[361668419,1747678263582,-1000.0,0.00019221,2]
[361668420,1747678263593,-1000.0,0.00019221,2]
[361668421,1747678263606,-1000.0,0.00019221,2]
[361668422,1747678263618,-1033.72907261,0.00019221,2]
[361668423,1747678263630,-1000.0,0.00019221,2]
[361668424,1747678263642,-1000.0,0.00019221,2]
[361668425,1747678263654,-1000.0,0.00019221,2]
[361668426,1747678263666,-1000.0,0.00019221,2]
[361668427,1747678263678,-1000.0,0.00019221,2]
[361668428,1747678263690,-1000.0,0.00019221,2]
[361668429,1747678263703,-230.704725,0.00019234,2]
[361668430,1747678263715,-230.704725,0.00019234,2]
[361668431,1747678263728,-151.0,0.00019271,2]
[361668432,1747678263944,-17478.04373862,0.00019329,2]
[361668433,1747678263954,-12638.53552368,0.00019346,2]
[361668434,1747678263964,-314.45853212,0.00019346,2]
[361668435,1747678263973,-160.0,0.00019346,2]